fUSD/lending_fUSD_20250305
["ID","MTS","AMOUNT","RATE_DAILY","PERIOD"]
[355442172,1741163439923,-1238.98,0.00011579,2]
[355442173,1741163439934,-2745.54,0.00011579,2]
[355442174,1741163439943,-2686.31,0.00011579,2]
[355442175,1741163439953,-1285.11,0.00011579,2]
[355442176,1741163439963,-500.0,0.00011579,2]
[355442177,1741163439973,-2047.04,0.00011579,2]
[355442178,1741163439983,-2877.44,0.00011579,2]
[355442180,1741163439993,-500.0,0.00011579,2]
[355442181,1741163440003,-3137.86,0.00011579,2]
[355442182,1741163440017,-4514.94,0.00011579,2]
[355442183,1741163440027,-2071.9,0.00011579,2]
[355442184,1741163440038,-833.43,0.00011579,2]
[355442186,1741163440048,-500.0,0.00011579,2]
[355442188,1741163440059,-3106.42,0.00011579,2]
[355442189,1741163440068,-1631.38,0.00011579,2]
[355442190,1741163440078,-849.47,0.00011579,2]
[355442191,1741163440088,-5269.3,0.00011579,2]
[355442192,1741163440099,-5268.14,0.00011579,2]
[355442193,1741163440114,-3641.62,0.00011579,2]
[355442194,1741163440125,-6320.83,0.00011579,2]
[355442195,1741163440135,-2661.05,0.00011579,2]
[355442196,1741163440145,-1866.77,0.00011579,2]
[355442197,1741163440155,-2797.17,0.00011579,2]
[355442198,1741163440164,-1526.8,0.00011579,2]
[355442199,1741163440174,-2990.12,0.00011579,2]
[355442200,1741163440184,-3783.46,0.00011579,2]
[355442201,1741163440193,-26316.59,0.00011579,2]
[355442202,1741163440203,-12289.71,0.00011579,2]
[355442203,1741163440212,-1040.69,0.00011579,2]
[355442204,1741163440222,-1764.95,0.00011579,2]
[355442205,1741163440232,-782.09,0.00011579,2]
[355442206,1741163440242,-2388.99,0.00011579,2]
[355442207,1741163440251,-563.07,0.00011579,2]
[355442208,1741163440261,-1612.71,0.00011579,2]
[355442209,1741163440271,-1446.1,0.00011579,2]
[355442210,1741163440280,-840.68,0.00011579,2]
[355442211,1741163440290,-670.62,0.00011579,2]
[355442212,1741163440300,-1505.64,0.00011579,2]
[355442213,1741163440309,-851.31,0.00011579,2]
[355442214,1741163440319,-612.47515006,0.00011579,2]
[355442215,1741163440329,-797.41,0.00011579,2]
[355442216,1741163440339,-1230.65,0.00011579,2]
[355442217,1741163440349,-615.37,0.00011579,2]
[355442218,1741163440358,-500.0,0.00011579,2]
[355442219,1741163440367,-135709.28461165,0.0001158,2]
[355442220,1741163440396,-2452.45000008,0.0001158,2]
[355442253,1741163445577,-482.83705447,0.00011579,2]
[355442254,1741163445639,-651.1875,0.00011579,2]
[355442255,1741163445745,-557.98875001,0.00011579,2]
[355442256,1741163445756,-5601.23669552,0.00011579,2]
[355442257,1741163445765,-500.0,0.00011579,2]
[355442258,1741163445774,-87759.9693077,0.0001158,2]
[355442259,1741163445783,-97275.37461831,0.0001158,2]
[355442260,1741163445792,-500.0,0.00011596,2]
[355442261,1741163445801,-294.74333145,0.00011596,2]
[355442262,1741163445810,-672.22,0.00011597,2]
[355442263,1741163445819,-937.09,0.00011597,2]
[355442264,1741163445828,-1105.75,0.00011597,2]
[355442265,1741163445837,-500.0,0.00011597,2]
[355442266,1741163445846,-571.35,0.00011597,2]
[355442267,1741163445855,-1333.62,0.00011597,2]
[355442269,1741163445865,-934.24,0.00011597,2]
[355442270,1741163445874,-1413.25,0.00011597,2]
[355442271,1741163445883,-759.62,0.00011597,2]
[355442272,1741163445892,-696.95,0.00011597,2]
[355442273,1741163445902,-648.77,0.00011597,2]
[355442274,1741163445912,-782.84,0.00011597,2]
[355442276,1741163445921,-682.85,0.00011597,2]
[355442277,1741163445930,-1155.17,0.00011597,2]
[355442278,1741163445939,-1055.19,0.00011597,2]
[355442279,1741163445949,-500.0,0.00011597,2]
[355442280,1741163445958,-691.96,0.00011597,2]
[355442281,1741163445968,-658.85,0.00011597,2]
[355442283,1741163445977,-500.0,0.00011597,2]
[355442284,1741163445986,-500.0,0.00011597,2]
[355442286,1741163445995,-892.63,0.00011597,2]
[355442287,1741163446005,-500.0,0.00011597,2]
[355442288,1741163446020,-1413.51,0.00011597,2]
[355442289,1741163446029,-500.0,0.00011597,2]
[355442290,1741163446039,-500.0,0.00011597,2]
[355442291,1741163446051,-500.0,0.00011597,2]
[355442292,1741163446061,-776.12,0.00011597,2]
[355442293,1741163446070,-500.0,0.00011597,2]
[355442294,1741163446080,-749.56,0.00011597,2]
[355442295,1741163446090,-647.03,0.00011597,2]
[355442296,1741163446099,-500.0,0.00011597,2]
[355442297,1741163446108,-1543.89,0.00011597,2]
[355442298,1741163446117,-500.0,0.00011597,2]
[355442299,1741163446127,-805.7,0.00011597,2]
[355442300,1741163446136,-1350.91,0.00011597,2]
[355442301,1741163446146,-644.54,0.00011597,2]
[355442302,1741163446155,-500.0,0.00011597,2]
[355442303,1741163446164,-1062.51,0.00011597,2]
[355442304,1741163446173,-1812.56,0.00011597,2]
[355442305,1741163446183,-672.3,0.00011597,2]
[355442306,1741163446193,-526.76,0.00011597,2]
[355442307,1741163446203,-2101.07,0.00011597,2]
[355442308,1741163446212,-1257.31,0.00011597,2]
[355442309,1741163446222,-500.0,0.00011597,2]
[355442310,1741163446231,-720.95,0.00011597,2]
[355442311,1741163446241,-674.28,0.00011597,2]
[355442312,1741163446251,-500.0,0.00011597,2]
[355442313,1741163446260,-519.54,0.00011597,2]
[355442314,1741163446269,-748.64,0.00011597,2]
[355442315,1741163446279,-1827.39,0.00011597,2]
[355442316,1741163446288,-742.27,0.00011597,2]
[355442317,1741163446298,-500.0,0.00011597,2]
[355442318,1741163446307,-629.53,0.00011597,2]
[355442319,1741163446317,-2124.79,0.00011597,2]
[355442320,1741163446326,-950.72,0.00011597,2]
[355442321,1741163446336,-1268.67,0.00011597,2]
[355442322,1741163446345,-739.27,0.00011597,2]
[355442323,1741163446355,-597.44,0.00011597,2]
[355442324,1741163446365,-2999.85,0.00011597,2]
[355442325,1741163446374,-650.38,0.00011597,2]
[355442326,1741163446384,-500.0,0.00011597,2]
[355442327,1741163446393,-1219.24,0.00011597,2]
[355442328,1741163446403,-2010.5,0.00011597,2]
[355442329,1741163446413,-500.0,0.00011597,2]
[355442330,1741163446425,-1539.63,0.00011597,2]
[355442331,1741163446437,-2476.08,0.00011597,2]
[355442332,1741163446448,-500.0,0.00011597,2]
[355442333,1741163446459,-6311.01,0.00011597,2]
[355442334,1741163446470,-2016.84,0.00011597,2]
[355442335,1741163446479,-1550.64,0.00011597,2]
[355442336,1741163446489,-1647.34,0.00011597,2]
[355442337,1741163446498,-1603.54,0.00011597,2]
[355442338,1741163446508,-7520.07,0.00011597,2]
[355442339,1741163446518,-2953.09,0.00011597,2]
[355442340,1741163446527,-1550.94,0.00011597,2]
[355442341,1741163446536,-1012.25,0.00011597,2]
[355442342,1741163446546,-4211.91,0.00011597,2]
[355442343,1741163446555,-687.79,0.00011597,2]
[355442344,1741163446564,-2821.49,0.00011597,2]
[355442345,1741163446574,-5046.06,0.00011597,2]
[355442346,1741163446583,-3135.57,0.00011597,2]
[355442347,1741163446593,-3211.69,0.00011597,2]
[355442348,1741163446602,-7810.38,0.00011597,2]
[355442349,1741163446611,-1113.86,0.00011597,2]
[355442350,1741163446620,-500.0,0.00011597,2]
[355442351,1741163446629,-1054.15,0.00011597,2]
[355442352,1741163446638,-647.79,0.00011597,2]
[355442353,1741163446647,-1333.49,0.00011597,2]
[355442354,1741163446656,-1787.28,0.00011597,2]
[355442355,1741163446665,-770.07,0.00011597,2]
[355442356,1741163446675,-4809.99,0.00011597,2]
[355442357,1741163446685,-5833.27,0.00011597,2]
[355442358,1741163446695,-10082.79,0.00011597,2]
[355442359,1741163446705,-2564.9,0.00011597,2]
[355442360,1741163446715,-1367.07,0.00011597,2]
[355442361,1741163446726,-3744.47,0.00011597,2]
[355442362,1741163446736,-2476.73,0.00011597,2]
[355442363,1741163446745,-1816.86,0.00011597,2]
[355442364,1741163446755,-2593.14,0.00011597,2]
[355442365,1741163446765,-2760.61,0.00011597,2]
[355442366,1741163446774,-1596.74,0.00011597,2]
[355442367,1741163446784,-746.07,0.00011597,2]
[355442368,1741163446793,-1193.84,0.00011597,2]
[355442369,1741163446803,-2666.54,0.00011597,2]
[355442370,1741163446812,-3034.03,0.00011597,2]
[355442371,1741163446822,-3015.11,0.00011597,2]
[355442372,1741163446832,-500.0,0.00011597,2]
[355442373,1741163446841,-2677.75,0.00011597,2]
[355442374,1741163446851,-2973.41,0.00011598,2]
[355442375,1741163446861,-3383.08,0.00011598,2]
[355442376,1741163446871,-4693.49,0.00011598,2]
[355442377,1741163446880,-9083.21728007,0.00011598,2]
[355442380,1741163866441,5000.0,0.000201,120]
[355442381,1741163894728,222.2,8.434e-05,2]
[355442382,1741163904772,5000.0,0.000201,120]
[355442387,1741164181124,537.9,8.534e-05,2]
[355442388,1741164187284,209.38,0.00010243,2]
[355442398,1741164631740,-156.23,0.00010461,2]
[355442399,1741164631750,-300.0,0.00010502,2]
[355442400,1741164631759,-3243.77,0.00010503,2]
[355442401,1741164631771,-13484.28366975,0.00010503,2]
[355442402,1741164631843,-453.91297858,0.00010503,2]
[355442403,1741164631954,-6718.03335167,0.00010503,2]
[355442404,1741164631963,-27.14376617,0.00010532,2]
[355442405,1741164631976,-592.36206145,0.00010532,2]
[355442406,1741164631987,-380.49417238,0.00010532,2]
[355442407,1741164631996,-150.0,0.00010548,7]
[355442408,1741164632006,-560.39,0.00010553,2]
[355442409,1741164632016,-250.0,0.00010559,2]
[355442410,1741164632026,-524.17,0.0001057,2]
[355442411,1741164632036,-200.0,0.00010594,2]
[355442412,1741164632045,-169.71,0.00010733,2]
[355442413,1741164632055,-537.9,0.00010798,2]
[355442414,1741164632064,-150.0,0.00010959,2]
[355442415,1741164632073,-550.0,0.00011,2]
[355442416,1741164632083,-150.0,0.00011299,2]
[355442417,1741164632092,-856.29337633,0.000113,2]
[355442418,1741164632102,-856.2933763,0.000113,2]
[355442419,1741164632111,-856.2933763,0.000113,2]
[355442420,1741164632121,-856.2933763,0.000113,2]
[355442421,1741164632130,-856.2933763,0.000113,2]
[355442422,1741164632139,-856.2933763,0.000113,2]
[355442423,1741164632148,-739.78215945,0.00011314,2]
[355442455,1741164632798,-116.51121685,0.00011314,2]
[355442456,1741164632807,-466.04140922,0.00011383,2]
[355442457,1741164632819,-390.25196708,0.00011383,2]
[355442458,1741164632828,-433.48384815,0.00011428,2]
[355442459,1741164632838,-856.2933763,0.00011452,2]
[355442460,1741164632849,-150.0,0.00011454,2]
[355442461,1741164632858,-633.41930843,0.00011477,2]
[355442462,1741164632870,-1032.69631656,0.00011477,2]
[355442463,1741164632880,-206.59191129,0.00011477,2]
[355442464,1741164632889,-175.16447681,0.00011477,2]
[355442465,1741164632899,-2362.74104428,0.00011478,2]
[355442466,1741164632910,-747.34999,0.00011478,2]
[355442467,1741164632921,-7933.01844227,0.00011478,2]
[355442468,1741164632934,-762.17542217,0.00011478,2]
[355442469,1741164632946,-639.900128,0.00011478,2]
[355442470,1741164633066,-362.54,0.00011478,2]
[355442471,1741164633078,-2388.80000009,0.00011478,2]
[355442472,1741164633103,-4547.26743359,0.00011478,2]
[355442473,1741164633114,-2117.77099789,0.00011478,2]
[355442474,1741164633125,-475.47500001,0.00011478,2]
[355442477,1741164637686,-1581.69072985,0.00011478,2]
[355442478,1741164637742,-7483.11321185,0.00011478,2]
[355442479,1741164637753,-2087.1923,0.00011479,2]
[355442480,1741164637763,-3330.1078,0.00011479,2]
[355442481,1741164637773,-151.0,0.00011483,2]
[355442482,1741164637783,-151.0,0.00011483,2]
[355442483,1741164637793,-256.04651983,0.00011483,2]
[355442484,1741164637803,-404.42016832,0.0001149,2]
[355442485,1741164637815,-3928.34057448,0.0001149,2]
[355442486,1741164637832,-3142.342646,0.0001149,2]
[355442487,1741164637850,-18734.66791194,0.0001149,2]
[355442488,1741164637859,-168.9667833,0.00011497,2]
[355442489,1741164637869,-1009.0,0.000115,2]
[355442490,1741164637879,-1666.11562495,0.00011508,2]
[355442491,1741164637889,-856.2933763,0.00011521,2]
[355442492,1741164637899,-7420.900946,0.00011535,2]
[355442493,1741164637909,-1666.11562495,0.00011538,2]
[355442494,1741164637920,-420.0,0.00011546,2]
[355442495,1741164637930,-500.0,0.00011561,2]
[355442496,1741164637940,-500.0,0.00011567,2]
[355442497,1741164637951,-439.74190138,0.00011567,2]
[355442498,1741164637963,-1666.11562495,0.00011569,2]
[355442499,1741164637973,-500.3426349,0.00011573,2]
[355442500,1741164637987,-1683.89,0.00011576,2]
[355442501,1741164637998,-1540.28,0.00011576,2]
[355442502,1741164638009,-1978.38,0.00011576,2]
[355442503,1741164638020,-1212.29,0.00011576,2]
[355442504,1741164638030,-2574.38,0.00011576,2]
[355442505,1741164638040,-3551.6,0.00011576,2]
[355442506,1741164638050,-500.0,0.00011576,2]
[355442507,1741164638061,-2757.54,0.00011576,2]
[355442508,1741164638071,-798.7,0.00011576,2]
[355442509,1741164638081,-1563.41,0.00011576,2]
[355442510,1741164638090,-500.0,0.00011576,2]
[355442511,1741164638100,-1985.57,0.00011576,2]
[355442512,1741164638110,-5048.63,0.00011576,2]
[355442513,1741164638120,-500.0,0.00011576,2]
[355442514,1741164638130,-814.08,0.00011576,2]
[355442515,1741164638139,-2550.18,0.00011576,2]
[355442516,1741164638149,-3489.89,0.00011576,2]
[355442518,1741164638158,-1788.99,0.00011576,2]
[355442519,1741164638168,-1463.18,0.00011576,2]
[355442520,1741164638178,-25220.07,0.00011576,2]
[355442521,1741164638187,-3625.82,0.00011576,2]
[355442522,1741164638198,-1691.41,0.00011576,2]
[355442523,1741164638207,-2289.45,0.00011576,2]
[355442524,1741164638216,-539.61,0.00011576,2]
[355442525,1741164638226,-642.68,0.00011576,2]
[355442526,1741164638239,-997.33,0.00011576,2]
[355442527,1741164638249,-749.51,0.00011576,2]
[355442528,1741164638259,-1442.9,0.00011576,2]
[355442529,1741164638268,-764.19,0.00011576,2]
[355442530,1741164638279,-1545.51,0.00011576,2]
[355442531,1741164638291,-805.66,0.00011576,2]
[355442532,1741164638301,-78759.32678963,0.00011577,2]
[355442533,1741164638311,-515.15,0.00011577,2]
[355442534,1741164638320,-500.0,0.00011577,2]
[355442535,1741164638329,-500.0,0.00011577,2]
[355442536,1741164638339,-589.73,0.00011577,2]
[355442537,1741164638348,-534.08,0.00011577,2]
[355442538,1741164638357,-682.86,0.00011577,2]
[355442539,1741164638367,-500.0,0.00011577,2]
[355442540,1741164638376,-500.0,0.00011577,2]
[355442541,1741164638385,-1166.39,0.00011577,2]
[355442542,1741164638395,-688.34,0.00011577,2]
[355442543,1741164638406,-500.0,0.00011577,2]
[355442544,1741164638419,-1131.35,0.00011577,2]
[355442545,1741164638429,-6989.37,0.00011577,2]
[355442546,1741164638439,-836.43,0.00011577,2]
[355442547,1741164638450,-1843.97,0.00011577,2]
[355442548,1741164638461,-679.13,0.00011577,2]
[355442549,1741164638471,-2152.34,0.00011577,2]
[355442550,1741164638482,-500.0,0.00011577,2]
[355442551,1741164638492,-500.0,0.00011577,2]
[355442552,1741164638502,-1810.24,0.00011577,2]
[355442553,1741164638513,-306.31066212,0.00011577,2]
[355442554,1741164638522,-806.77,0.00011577,2]
[355442555,1741164638532,-777.89,0.00011577,2]
[355442556,1741164638543,-2661.04,0.00011577,2]
[355442557,1741164638553,-2856.01,0.00011577,2]
[355442558,1741164638562,-500.93095466,0.00011577,2]
[355442559,1741164638572,-2146.99,0.00011577,2]
[355442560,1741164638582,-4436.82,0.00011577,2]
[355442561,1741164638591,-500.0,0.00011577,2]
[355442562,1741164638600,-459.62129599,0.00011577,2]
[355442563,1741164638610,-544.54,0.00011577,2]
[355442564,1741164638619,-7682.67,0.00011577,2]
[355442565,1741164638629,-725.64,0.00011577,2]
[355442566,1741164638640,-2226.79,0.00011577,2]
[355442567,1741164638650,-500.0,0.00011577,2]
[355442568,1741164638660,-500.0,0.00011577,2]
[355442569,1741164638669,-2740.44,0.00011577,2]
[355442570,1741164638679,-500.0,0.00011577,2]
[355442571,1741164638689,-530.61,0.00011577,2]
[355442572,1741164638698,-2631.15,0.00011577,2]
[355442573,1741164638707,-1231.56,0.00011577,2]
[355442574,1741164638716,-1961.74,0.00011577,2]
[355442575,1741164638725,-500.0,0.00011577,2]
[355442576,1741164638736,-3007.12,0.00011577,2]
[355442577,1741164638745,-4326.82,0.00011577,2]
[355442578,1741164638755,-500.0,0.00011577,2]
[355442579,1741164638764,-2976.99,0.00011577,2]
[355442580,1741164638774,-500.0,0.00011577,2]
[355442581,1741164638783,-5049.75,0.00011577,2]
[355442582,1741164638793,-6057.46,0.00011577,2]
[355442583,1741164638803,-500.0,0.00011577,2]
[355442584,1741164638813,-500.0,0.00011577,2]
[355442585,1741164638823,-870.57,0.00011577,2]
[355442586,1741164638833,-2680.62,0.00011577,2]
[355442587,1741164638843,-662.81,0.00011577,2]
[355442588,1741164638854,-500.0,0.00011577,2]
[355442589,1741164638864,-800.91,0.00011577,2]
[355442590,1741164638874,-2865.53,0.00011577,2]
[355442591,1741164638883,-500.0,0.00011577,2]
[355442592,1741164638893,-500.0,0.00011577,2]
[355442593,1741164638902,-500.0,0.00011577,2]
[355442594,1741164638912,-11777.63,0.00011577,2]
[355442595,1741164638921,-500.0,0.00011577,2]
[355442596,1741164638930,-500.0,0.00011577,2]
[355442597,1741164638940,-478.15013693,0.00011577,2]
[355442598,1741164638949,-503.00371817,0.00011577,2]
[355442599,1741164638958,-2108.91,0.00011577,2]
[355442600,1741164638967,-500.0,0.00011577,2]
[355442601,1741164638977,-791.76,0.00011577,2]
[355442602,1741164638988,-500.0,0.00011577,2]
[355442603,1741164638998,-500.0,0.00011577,2]
[355442604,1741164639007,-500.0,0.00011577,2]
[355442605,1741164639016,-500.0,0.00011577,2]
[355442606,1741164639025,-500.0,0.00011577,2]
[355442607,1741164639034,-500.0,0.00011577,2]
[355442608,1741164639044,-181.57202549,0.00011577,2]
[355442609,1741164639054,-500.0,0.00011577,2]
[355442610,1741164639063,-520.71097503,0.00011577,2]
[355442611,1741164639072,-852.55,0.00011578,2]
[355442612,1741164639082,-1059.68,0.00011578,2]
[355442613,1741164639092,-898.05,0.00011578,2]
[355442614,1741164639101,-500.0,0.00011578,2]
[355442615,1741164639110,-547.54,0.00011578,2]
[355442616,1741164639120,-1278.05,0.00011578,2]
[355442617,1741164639129,-895.31,0.00011578,2]
[355442618,1741164639138,-1354.37,0.00011578,2]
[355442619,1741164639148,-727.97,0.00011578,2]
[355442620,1741164639158,-667.91,0.00011578,2]
[355442621,1741164639168,-621.73,0.00011578,2]
[355442622,1741164639178,-750.22,0.00011578,2]
[355442623,1741164639188,-654.4,0.00011578,2]
[355442624,1741164639198,-1107.04,0.00011578,2]
[355442625,1741164639208,-500.0,0.00011578,2]
[355442626,1741164639218,-500.0,0.00011578,2]
[355442627,1741164639227,-631.4,0.00011578,2]
[355442628,1741164639238,-663.12,0.00011578,2]
[355442629,1741164639248,-500.0,0.00011578,2]
[355442630,1741164639257,-500.0,0.00011578,2]
[355442631,1741164639267,-500.0,0.00011578,2]
[355442632,1741164639276,-855.44,0.00011578,2]
[355442633,1741164639286,-1354.61,0.00011578,2]
[355442634,1741164639295,-500.0,0.00011578,2]
[355442635,1741164639304,-500.0,0.00011578,2]
[355442636,1741164639314,-743.78,0.00011578,2]
[355442637,1741164639324,-500.0,0.00011578,2]
[355442638,1741164639333,-718.33,0.00011578,2]
[355442639,1741164639343,-500.0,0.00011578,2]
[355442640,1741164639352,-620.07,0.00011578,2]
[355442641,1741164639362,-1479.56,0.00011578,2]
[355442642,1741164639372,-500.0,0.00011578,2]
[355442643,1741164639383,-500.0,0.00011578,2]
[355442644,1741164639395,-617.68,0.00011578,2]
[355442645,1741164639408,-772.13,0.00011578,2]
[355442646,1741164639418,-1294.62,0.00011578,2]
[355442647,1741164639427,-500.0,0.00011578,2]
[355442648,1741164639437,-1018.24,0.00011578,2]
[355442649,1741164639447,-1737.04,0.00011578,2]
[355442650,1741164639456,-527.72,0.00011578,2]
[355442651,1741164639465,-644.28,0.00011578,2]
[355442652,1741164639474,-500.0,0.00011578,2]
[355442653,1741164639485,-604.54,0.00011578,2]
[355442654,1741164639494,-2013.52,0.00011578,2]
[355442655,1741164639503,-1204.92,0.00011578,2]
[355442656,1741164639512,-166.44,0.00011578,2]
[355442657,1741164639521,-490.0,0.00011578,2]
[355442658,1741164639530,-646.18,0.00011578,2]
[355442659,1741164639539,-717.45,0.00011578,2]
[355442660,1741164639547,-1006.3,0.00011578,2]
[355442661,1741164639556,-711.34,0.00011578,2]
[355442662,1741164639566,-500.0,0.00011578,2]
[355442663,1741164639577,-1751.25,0.00011578,2]
[355442664,1741164639586,-1215.81,0.00011578,2]
[355442665,1741164639596,-603.3,0.00011578,2]
[355442666,1741164639606,-572.54,0.00011578,2]
[355442667,1741164639615,-911.11,0.00011578,2]
[355442669,1741164639625,-708.47,0.00011578,2]
[355442671,1741164639636,-1530.21,0.00011578,2]
[355442672,1741164639645,-2907.61,0.00011578,2]
[355442673,1741164639655,-1926.72,0.00011578,2]
[355442674,1741164639664,-1003.94,0.00011578,2]
[355442675,1741164639673,-623.28,0.00011578,2]
[355442676,1741164639683,-714.99,0.00011578,2]
[355442677,1741164639692,-1691.2,0.00011578,2]
[355442678,1741164639701,-2036.26,0.00011578,2]
[355442679,1741164639711,-2849.52,0.00011578,2]
[355442680,1741164639720,-1475.48,0.00011578,2]
[355442681,1741164639729,-1578.7,0.00011578,2]
[355442682,1741164639742,-3242.12,0.00011578,2]
[355442683,1741164639751,-500.0,0.00011578,2]
[355442684,1741164639761,-2889.48,0.00011578,2]
[355442685,1741164639770,-4497.93,0.00011578,2]
[355442686,1741164639779,-2874.86,0.00011578,2]
[355442688,1741164639790,-1050.04,0.00011578,2]
[355442689,1741164639799,-500.0,0.00011578,2]
[355442690,1741164639809,-869.9,0.00011578,2]
[355442691,1741164639818,-12900.06,0.00011578,2]
[355442692,1741164639828,-1168.44,0.00011578,2]
[355442693,1741164639838,-8224.95,0.00011578,2]
[355442694,1741164639848,-500.0,0.00011578,2]
[355442695,1741164639857,-500.0,0.00011578,2]
[355442696,1741164639867,-2372.91,0.00011578,2]
[355442697,1741164639877,-37252.84,0.00011578,2]
[355442698,1741164639886,-500.0,0.00011578,2]
[355442699,1741164639896,-6048.05,0.00011578,2]
[355442700,1741164639905,-1486.32,0.00011578,2]
[355442701,1741164639915,-659.13,0.00011578,2]
[355442702,1741164639925,-1486.03,0.00011578,2]
[355442703,1741164639935,-3347.54,0.00011578,2]
[355442704,1741164639944,-8736.23,0.00011578,2]
[355442705,1741164639955,-7206.73,0.00011578,2]
[355442706,1741164639964,-1010.23,0.00011578,2]
[355442707,1741164639973,-2589.73033389,0.00011578,2]
[355442708,1741164639990,-114.19966611,0.00011578,2]
[355442709,1741164639999,-220.27033389,0.00011578,2]
[355442710,1741164640031,-350.30767615,0.00011578,2]
[355442713,1741164640490,-1179.37,0.00011576,2]
[355442714,1741164640501,-3376.18,0.00011578,2]
[355442715,1741164640512,-456.1,0.00011578,2]
[355442716,1741164640524,-1034.0,0.00011578,2]
[355442717,1741164640564,-256.54198996,0.00011578,2]
[355442718,1741164640574,-187.5167333,0.00011578,2]
[355442719,1741164640593,-3848.9032667,0.00011578,2]
[355442720,1741164640603,-5760.69673322,0.00011578,2]
[355442721,1741164640619,-416.59088653,0.00011578,2]
[355442722,1741164640631,-4760.81032275,0.00011578,2]
[355442723,1741164640648,-1739.18967725,0.00011578,2]
[355442777,1741164643888,-500.0,0.00011577,2]
[355442778,1741164643898,-500.0,0.00011577,2]
[355442779,1741164643907,-7812.05269706,0.00011578,2]
[355442780,1741164645820,-1117.79,0.00011576,2]
[355442781,1741164645833,-17288.22968319,0.00011578,2]
[355442782,1741164645845,-1067.45,0.00011578,2]
[355442783,1741164645858,-1301.93,0.00011578,2]
[355442784,1741164645872,-4835.81,0.00011578,2]
[355442785,1741164645884,-779.25,0.00011578,2]
[355442786,1741164645896,-1224.67,0.00011578,2]
[355442787,1741164645907,-4849.22,0.00011578,2]
[355442788,1741164645919,-1123.02,0.00011578,2]
[355442789,1741164645931,-3004.92,0.00011578,2]
[355442790,1741164645943,-1553.96,0.00011578,2]
[355442791,1741164645958,-3077.87,0.00011578,2]
[355442792,1741164645969,-1741.16,0.00011578,2]
[355442793,1741164645980,-3989.63,0.00011578,2]
[355442794,1741164645990,-500.0,0.00011578,2]
[355442795,1741164646003,-620.8,0.00011578,2]
[355442796,1741164646016,-8234.95,0.00011578,2]
[355442797,1741164646029,-7484.95,0.00011578,2]
[355442798,1741164646039,-37.84028777,0.00011578,2]
[355442799,1741164646070,-1951.42,0.00011577,2]
[355442800,1741164646082,-2335.68971223,0.00011578,2]
[355442801,1741164646093,-4609.57,0.00011578,2]
[355442802,1741164646105,-2681.31,0.00011578,2]
[355442803,1741164646116,-5588.9,0.00011578,2]
[355442804,1741164646127,-1712.81,0.00011578,2]
[355442805,1741164646139,-9662.68,0.00011578,2]
[355442807,1741164646150,-6885.13,0.00011578,2]
[355442809,1741164646162,-5590.22,0.00011578,2]
[355442812,1741164646173,-2485.09,0.00011578,2]
[355442814,1741164646184,-6014.26,0.00011578,2]
[355442816,1741164646196,-2555.43,0.00011578,2]
[355442818,1741164646207,-796.43,0.00011578,2]
[355442820,1741164646218,-2645.59,0.00011578,2]
[355442822,1741164646229,-3588.45,0.00011578,2]
[355442825,1741164646241,-1144.09,0.00011578,2]
[355442827,1741164646252,-844.55,0.00011578,2]
[355442829,1741164646263,-1807.15,0.00011578,2]
[355442830,1741164646274,-1440.53,0.00011578,2]